[Event "Saint Louis Masters"]
[Date "2024.12.05"]
[White "Sevian, Samuel"]
[Black "Khanin, Semen"]
[WhiteElo "2696"]
[BlackElo "2568"]
[Round "6.8"]
[Result "1-0"]
[TimeControl "5400+30"]

1. e4 {[%clk 01:26:07] [%emt 00:04:53]} e5 {[%clk 01:30:49] [%emt 00:00:11]} 2.
Nf3 {[%clk 01:26:30] [%emt 00:00:07]} Nc6 {[%clk 01:31:15] [%emt 00:00:05]} 3.
Bc4 {[%clk 01:26:54] [%emt 00:00:06]} Nf6 {[%clk 01:31:40] [%emt 00:00:05]} 4.
d3 {[%clk 01:27:12] [%emt 00:00:11]} Bc5 {[%clk 01:32:05] [%emt 00:00:06]} 5. c3
{[%clk 01:27:35] [%emt 00:00:06]} d6 {[%clk 01:32:20] [%emt 00:00:16]} 6. Bg5
{[%clk 01:27:57] [%emt 00:00:07]} h6 {[%clk 01:32:32] [%emt 00:00:18]} 7. Bh4
{[%clk 01:28:21] [%emt 00:00:06]} a6 {[%clk 01:32:57] [%emt 00:00:07]} 8. Nbd2
{[%clk 01:28:40] [%emt 00:00:10]} Ba7 {[%clk 01:33:10] [%emt 00:00:17]} 9. O-O
{[%clk 01:28:21] [%emt 00:00:49]} g5 {[%clk 01:32:28] [%emt 00:01:11]} 10. Bg3
{[%clk 01:28:46] [%emt 00:00:06]} Qe7 {[%clk 01:32:50] [%emt 00:00:08]} 11. b4
{[%clk 01:29:09] [%emt 00:00:07]} Nd7 {[%clk 01:32:03] [%emt 00:01:17]} 12. b5
{[%clk 01:29:04] [%emt 00:00:35]} Na5 {[%clk 01:17:22] [%emt 00:15:10]} 13. bxa6
{[%clk 01:28:54] [%emt 00:00:40]} bxa6 {[%clk 01:17:28] [%emt 00:00:24]} 14. Qa4
{[%clk 01:18:58] [%emt 00:10:26]} Bb6 {[%clk 01:11:06] [%emt 00:06:52]} 15. Bd5
{[%clk 01:15:57] [%emt 00:03:31]} Rb8 {[%clk 01:10:10] [%emt 00:01:27]} 16. d4
{[%clk 01:15:23] [%emt 00:01:03]} O-O {[%clk 01:06:27] [%emt 00:04:13]} 17. Nb3
{[%clk 01:10:28] [%emt 00:05:26]} Nxb3 {[%clk 00:57:16] [%emt 00:09:41]} 18.
axb3 {[%clk 01:10:34] [%emt 00:00:23]} a5 {[%clk 00:56:33] [%emt 00:01:14]} 19.
Rfe1 {[%clk 01:09:08] [%emt 00:01:56]} h5 {[%clk 00:50:05] [%emt 00:06:58]} 20.
h4 {[%clk 01:04:28] [%emt 00:05:09]} g4 {[%clk 00:50:20] [%emt 00:00:15]} 21.
Nh2 {[%clk 00:59:50] [%emt 00:05:08]} Nf6 {[%clk 00:41:03] [%emt 00:09:48]} 22.
Bc6 {[%clk 00:58:25] [%emt 00:01:55]} Bd7 {[%clk 00:33:05] [%emt 00:08:28]} 23.
Bxd7 {[%clk 00:55:22] [%emt 00:03:33]} Qxd7 {[%clk 00:33:23] [%emt 00:00:13]}
24. dxe5 {[%clk 00:49:52] [%emt 00:06:00]} Qxa4 {[%clk 00:32:24] [%emt
00:01:28]} 25. Rxa4 {[%clk 00:50:07] [%emt 00:00:15]} dxe5 {[%clk 00:32:50]
[%emt 00:00:05]} 26. Bxe5 {[%clk 00:50:29] [%emt 00:00:07]} Nd7 {[%clk 00:33:07]
[%emt 00:00:13]} 27. Bd4 {[%clk 00:50:55] [%emt 00:00:04]} g3 {[%clk 00:33:09]
[%emt 00:00:28]} 28. fxg3 {[%clk 00:36:27] [%emt 00:14:58]} Nc5 {[%clk 00:33:21]
[%emt 00:00:18]} 29. Ra3 {[%clk 00:23:56] [%emt 00:12:59]} Rfe8 {[%clk 00:25:09]
[%emt 00:08:43]} 30. e5 {[%clk 00:18:00] [%emt 00:06:26]} Nxb3 {[%clk 00:22:02]
[%emt 00:03:37]} 31. Bxb6 {[%clk 00:18:13] [%emt 00:00:17]} Rxb6 {[%clk
00:22:27] [%emt 00:00:06]} 32. g4 {[%clk 00:17:55] [%emt 00:00:48]} hxg4 {[%clk
00:13:55] [%emt 00:09:02]} 33. Nxg4 {[%clk 00:18:20] [%emt 00:00:05]} f5 {[%clk
00:11:17] [%emt 00:03:08]} 34. Nh2 {[%clk 00:16:11] [%emt 00:02:38]} Ra8 {[%clk
00:09:38] [%emt 00:02:10]} 35. e6 {[%clk 00:07:09] [%emt 00:09:33]} Kf8 {[%clk
00:08:26] [%emt 00:01:41]} 36. Nf1 {[%clk 00:07:38] [%emt 00:00:02]} f4 {[%clk
00:07:11] [%emt 00:01:44]} 37. Re4 {[%clk 00:06:57] [%emt 00:01:11]} Ke7 {[%clk
00:06:53] [%emt 00:00:48]} 38. Rxf4 {[%clk 00:07:26] [%emt 00:00:02]} Kxe6
{[%clk 00:06:51] [%emt 00:00:32]} 39. Ne3 {[%clk 00:07:55]} Nc5 {[%clk 00:06:27]
[%emt 00:00:54]} 40. Rc4 {[%clk 00:05:42] [%emt 00:02:42]} Rb1+ {[%clk 00:05:50]
[%emt 00:01:07]} 41. Kh2 {[%clk 00:05:58] [%emt 00:00:15]} Kd6 {[%clk 00:06:15]
[%emt 00:00:04]} 42. h5 {[%clk 00:02:03] [%emt 00:04:25]} a4 {[%clk 00:06:33]
[%emt 00:00:13]} 43. h6 {[%clk 00:02:30] [%emt 00:00:03]} Rb3 {[%clk 00:03:32]
[%emt 00:03:30]} 44. Ra1 {[%clk 00:00:39] [%emt 00:02:21]} a3 {[%clk 00:02:49]
[%emt 00:01:14]} 45. Nc2 {[%clk 00:01:09]} Ne6 {[%clk 00:00:46] [%emt 00:02:33]}
46. Rd1+ {[%clk 00:00:46] [%emt 00:00:52]} Ke7 {[%clk 00:01:12] [%emt 00:00:04]}
47. Re4 {[%clk 00:00:59] [%emt 00:00:17]} Rb6 {[%clk 00:01:14] [%emt 00:00:27]}
48. Nb4 {[%clk 00:00:47] [%emt 00:00:43]} Rd6 {[%clk 00:00:58] [%emt 00:00:47]}
49. Ra1 {[%clk 00:00:32] [%emt 00:00:45]} c5 {[%clk 00:00:57] [%emt 00:00:31]}
50. Nc2 {[%clk 00:00:49] [%emt 00:00:13]} a2 {[%clk 00:01:09] [%emt 00:00:18]}
51. Rh4 {[%clk 00:00:40] [%emt 00:00:39]} Rda6 {[%clk 00:00:56] [%emt 00:00:42]}
52. h7 {[%clk 00:00:37] [%emt 00:00:33]} Rh8 {[%clk 00:01:23] [%emt 00:00:03]}
53. Rh6 {[%clk 00:01:05] [%emt 00:00:03]} Kf7 {[%clk 00:00:46] [%emt 00:01:06]}
54. Ne3 {[%clk 00:01:31] [%emt 00:00:03]} Nc7 {[%clk 00:00:35] [%emt 00:00:42]}
55. Rxa6 {[%clk 00:01:45] [%emt 00:00:16]} Rxh7+ {[%clk 00:01:00] [%emt
00:00:05]} 56. Kg3 {[%clk 00:02:13] [%emt 00:00:02]} Nxa6 {[%clk 00:01:26] [%emt
00:00:04]} 57. Rxa2 {[%clk 00:02:40] [%emt 00:00:03]} Nc7 {[%clk 00:01:00] [%emt
00:00:56]} 58. Ra5 {[%clk 00:02:42] [%emt 00:00:27]} Rg7+ {[%clk 00:00:47] [%emt
00:00:43]} 59. Kf3 {[%clk 00:00:35] [%emt 00:02:37]} Kf6 {[%clk 00:00:32] [%emt
00:00:46]} 60. Rxc5 {[%clk 00:00:55] [%emt 00:00:10]} Ne6 {[%clk 00:00:55] [%emt
00:00:06]} 61. Rf5+ {[%clk 00:01:23] [%emt 00:00:03]} Ke7 {[%clk 00:01:13] [%emt
00:00:12]} 62. Ra5 {[%clk 00:01:19] [%emt 00:00:33]} Rg8 {[%clk 00:01:24] [%emt
00:00:20]} 63. Ke4 {[%clk 00:01:18] [%emt 00:00:30]} Rb8 {[%clk 00:00:32] [%emt
00:01:23]} 64. Ke5 {[%clk 00:01:33] [%emt 00:00:15]} Nf8 {[%clk 00:00:40] [%emt
00:00:22]} 65. Nf5+ {[%clk 00:01:56] [%emt 00:00:07]} Kd7 {[%clk 00:00:49] [%emt
00:00:21]} 66. Kd5 {[%clk 00:01:42] [%emt 00:00:44]} Ne6 {[%clk 00:01:16] [%emt
00:00:02]} 67. Ke5 {[%clk 00:01:24] [%emt 00:00:48]} Nc7 {[%clk 00:01:37] [%emt
00:00:09]} 68. g4 {[%clk 00:00:41] [%emt 00:01:13]} Re8+ {[%clk 00:02:01] [%emt
00:00:07]} 69. Kf6 {[%clk 00:00:51] [%emt 00:00:19]} Rf8+ {[%clk 00:01:25] [%emt
00:01:07]} 70. Kg6 {[%clk 00:01:17] [%emt 00:00:05]} Ne6 {[%clk 00:01:08] [%emt
00:00:47]} 71. Ra7+ {[%clk 00:01:41] [%emt 00:00:05]} Kc6 {[%clk 00:01:35] [%emt
00:00:04]} 72. Nd4+ {[%clk 00:02:04] [%emt 00:00:06]} Nxd4 {[%clk 00:01:39]
[%emt 00:00:26]} 73. cxd4 {[%clk 00:02:31] [%emt 00:00:04]} Rf4 {[%clk 00:01:54]
[%emt 00:00:14]} 74. g5 {[%clk 00:02:53] [%emt 00:00:07]} Kd6 {[%clk 00:02:20]
[%emt 00:00:05]} 75. d5 {[%clk 00:01:45] [%emt 00:01:38]} Rf1 {[%clk 00:01:47]
[%emt 00:01:03]} 76. Rf7 {[%clk 00:01:59] [%emt 00:00:14]} Kxd5 {[%emt
00:00:10]} 1-0

[Site "Europe Echecs"]

[Event "Saint Louis Masters"]
[Date "2024.12.06"]
[White "Woodward, Andy"]
[Black "Shankland, Sam"]
[WhiteElo "2530"]
[BlackElo "2672"]
[Round "6.9"]
[Result "0-1"]
[TimeControl "5400+30"]

1. d4 {[%clk 01:30:46] [%emt 00:00:03]} Nf6 {[%clk 01:30:51] [%emt 00:00:20]} 2.
c4 {[%clk 01:31:04] [%emt 00:00:12]} e6 {[%clk 01:31:14] [%emt 00:00:07]} 3. g3
{[%clk 01:31:27] [%emt 00:00:07]} c5 {[%clk 01:31:21] [%emt 00:00:23]} 4. d5
{[%clk 01:31:28] [%emt 00:00:29]} exd5 {[%clk 01:31:43] [%emt 00:00:08]} 5. cxd5
{[%clk 01:31:51] [%emt 00:00:06]} d6 {[%clk 01:32:08] [%emt 00:00:06]} 6. Nc3
{[%clk 01:32:12] [%emt 00:00:08]} g6 {[%clk 01:32:32] [%emt 00:00:06]} 7. Bg2
{[%clk 01:32:34] [%emt 00:00:09]} Bg7 {[%clk 01:32:56] [%emt 00:00:05]} 8. Nf3
{[%clk 01:32:55] [%emt 00:00:08]} O-O {[%clk 01:33:18] [%emt 00:00:08]} 9. O-O
{[%clk 01:33:19] [%emt 00:00:06]} Re8 {[%clk 01:33:38] [%emt 00:00:10]} 10. Bf4
{[%clk 01:33:27] [%emt 00:00:22]} Na6 {[%clk 01:33:10] [%emt 00:00:58]} 11. Re1
{[%clk 01:31:14] [%emt 00:02:43]} Bg4 {[%clk 01:33:10] [%emt 00:00:30]} 12. h3
{[%clk 01:20:37] [%emt 00:11:08]} Bxf3 {[%clk 01:33:34] [%emt 00:00:05]} 13.
Bxf3 {[%clk 01:20:32] [%emt 00:00:35]} Nd7 {[%clk 01:33:56] [%emt 00:00:08]} 14.
Bg2 {[%clk 01:14:13] [%emt 00:06:50]} Ne5 {[%clk 01:33:26] [%emt 00:01:00]} 15.
Rb1 {[%clk 01:03:44] [%emt 00:10:59]} Rc8 {[%clk 01:31:06] [%emt 00:02:50]} 16.
a3 {[%clk 01:00:14] [%emt 00:03:59]} c4 {[%clk 01:25:19] [%emt 00:06:17]} 17.
Ne4 {[%clk 00:53:54] [%emt 00:06:49]} Nc5 {[%clk 01:18:44] [%emt 00:07:06]} 18.
Bg5 {[%clk 00:52:48] [%emt 00:01:36]} Qd7 {[%clk 01:10:31] [%emt 00:08:43]} 19.
Nxc5 {[%clk 00:47:06] [%emt 00:06:12]} Rxc5 {[%clk 01:10:38] [%emt 00:00:24]}
20. Be3 {[%clk 00:47:17] [%emt 00:00:17]} Rb5 {[%clk 01:07:27] [%emt 00:03:43]}
21. Bd2 {[%clk 00:29:53] [%emt 00:17:54]} Rb3 {[%clk 00:53:10] [%emt 00:14:47]}
22. Bc3 {[%clk 00:28:12] [%emt 00:02:10]} Qc8 {[%clk 00:50:40] [%emt 00:03:01]}
23. Rc1 {[%clk 00:20:23] [%emt 00:08:19]} b5 {[%clk 00:47:13] [%emt 00:03:57]}
24. Kh2 {[%clk 00:17:09] [%emt 00:03:43]} Qc5 {[%clk 00:43:23] [%emt 00:04:21]}
25. Kg1 {[%clk 00:14:57] [%emt 00:02:43]} a5 {[%clk 00:40:46] [%emt 00:03:06]}
26. Bxa5 {[%clk 00:13:05] [%emt 00:02:20]} Rxb2 {[%clk 00:39:22] [%emt
00:01:53]} 27. Bb4 {[%clk 00:13:09] [%emt 00:00:26]} Qb6 {[%clk 00:39:00] [%emt
00:00:52]} 28. Rc2 {[%clk 00:13:24] [%emt 00:00:15]} Rb3 {[%clk 00:38:44] [%emt
00:00:47]} 29. Kf1 {[%clk 00:13:07] [%emt 00:00:47]} Nd7 {[%clk 00:37:46] [%emt
00:01:28]} 30. Rc1 {[%clk 00:10:16] [%emt 00:03:22]} Bd4 {[%clk 00:34:55] [%emt
00:03:20]} 31. e3 {[%clk 00:10:44] [%emt 00:00:02]} Bc5 {[%clk 00:34:59] [%emt
00:00:26]} 32. Rb1 {[%clk 00:11:01] [%emt 00:00:13]} Bxb4 {[%clk 00:35:03] [%emt
00:00:26]} 33. axb4 {[%clk 00:11:22] [%emt 00:00:09]} Ra3 {[%clk 00:34:51] [%emt
00:00:43]} 34. h4 {[%clk 00:08:29] [%emt 00:03:23]} Qd8 {[%clk 00:31:26] [%emt
00:03:55]} 35. Qc1 {[%clk 00:06:36] [%emt 00:02:23]} Ra4 {[%clk 00:31:05] [%emt
00:00:51]} 36. Ra1 {[%clk 00:07:05] [%emt 00:00:02]} Rxb4 {[%clk 00:30:06] [%emt
00:01:28]} 37. Qa3 {[%clk 00:07:27] [%emt 00:00:08]} Rb3 {[%clk 00:28:53] [%emt
00:01:43]} 38. Qxd6 {[%clk 00:07:54] [%emt 00:00:02]} Ne5 {[%clk 00:28:37] [%emt
00:00:47]} 39. Qxd8 {[%clk 00:07:29] [%emt 00:00:55]} Rxd8 {[%clk 00:29:01]
[%emt 00:00:06]} 40. Reb1 {[%clk 00:07:35] [%emt 00:00:24]} Rxb1+ {[%clk
00:26:38] [%emt 00:02:52]} 41. Rxb1 {[%clk 00:08:04] [%emt 00:00:02]} c3 {[%clk
00:24:50] [%emt 00:02:17]} 42. Be4 {[%clk 00:08:14] [%emt 00:00:20]} Nc4 {[%clk
00:24:51] [%emt 00:00:30]} 43. Ke2 {[%clk 00:07:05] [%emt 00:01:39]} Nd2 {[%clk
00:25:00] [%emt 00:00:21]} 44. Rb4 {[%clk 00:07:24] [%emt 00:00:11]} Nxe4 {[%clk
00:25:18] [%emt 00:00:12]} 0-1

[Site "Europe Echecs"]

[Event "Saint Louis Masters"]
[Date "2024.12.06"]
[White "Bok, Benjamin"]
[Black "Vazquez, Guillermo"]
[WhiteElo "2593"]
[BlackElo "2569"]
[Round "6.10"]
[Result "1/2-1/2"]
[TimeControl "5400+30"]

1. c4 {[%clk 01:26:59] [%emt 00:04:01]} e5 {[%clk 01:29:27] [%emt 00:01:32]} 2.
Nc3 {[%clk 01:27:03] [%emt 00:00:26]} Nf6 {[%clk 01:29:45] [%emt 00:00:12]} 3.
Nf3 {[%clk 01:27:26] [%emt 00:00:07]} Nc6 {[%clk 01:29:25] [%emt 00:00:50]} 4.
e3 {[%clk 01:27:50] [%emt 00:00:07]} Bb4 {[%clk 01:28:23] [%emt 00:01:31]} 5.
Qc2 {[%clk 01:28:16] [%emt 00:00:05]} Bxc3 {[%clk 01:27:52] [%emt 00:01:01]} 6.
Qxc3 {[%clk 01:28:37] [%emt 00:00:09]} Qe7 {[%clk 01:28:12] [%emt 00:00:09]} 7.
a3 {[%clk 01:29:00] [%emt 00:00:08]} d5 {[%clk 01:27:46] [%emt 00:00:55]} 8. d4
{[%clk 01:29:20] [%emt 00:00:11]} exd4 {[%clk 01:26:40] [%emt 00:01:36]} 9. Nxd4
{[%clk 01:29:42] [%emt 00:00:08]} Nxd4 {[%clk 01:27:00] [%emt 00:00:10]} 10.
Qxd4 {[%clk 01:30:10] [%emt 00:00:02]} c5 {[%clk 01:27:12] [%emt 00:00:18]} 11.
Qh4 {[%clk 01:30:31] [%emt 00:00:09]} Be6 {[%clk 01:14:16] [%emt 00:13:26]} 12.
cxd5 {[%clk 01:30:49] [%emt 00:00:12]} Nxd5 {[%clk 01:14:42] [%emt 00:00:04]}
13. Bb5+ {[%clk 01:28:05] [%emt 00:03:15]} Bd7 {[%clk 01:08:42] [%emt 00:06:29]}
14. Qxe7+ {[%clk 01:28:24] [%emt 00:00:11]} Kxe7 {[%clk 01:07:33] [%emt
00:01:39]} 15. Be2 {[%clk 01:24:28] [%emt 00:04:26]} Nc7 {[%clk 01:00:26] [%emt
00:07:37]} 16. Bd2 {[%clk 01:17:14] [%emt 00:07:44]} a5 {[%clk 00:52:42] [%emt
00:08:14]} 17. Bf3 {[%clk 01:10:35] [%emt 00:07:10]} Ra7 {[%clk 00:52:37] [%emt
00:00:35]} 18. h4 {[%clk 01:00:46] [%emt 00:10:18]} h5 {[%clk 00:49:25] [%emt
00:03:42]} 19. O-O {[%clk 00:59:19] [%emt 00:01:57]} Bg4 {[%clk 00:46:26] [%emt
00:03:29]} 20. Be4 {[%clk 00:59:23] [%emt 00:00:26]} Rd8 {[%clk 00:44:11] [%emt
00:02:45]} 21. Bc3 {[%clk 00:58:00] [%emt 00:01:54]} g6 {[%clk 00:41:05] [%emt
00:03:36]} 22. f3 {[%clk 00:50:22] [%emt 00:08:08]} Be6 {[%clk 00:32:33] [%emt
00:09:02]} 23. Rfd1 {[%clk 00:33:04] [%emt 00:17:48]} Nd5 {[%clk 00:28:52] [%emt
00:04:11]} 24. Bd2 {[%clk 00:24:50] [%emt 00:08:42]} Nb6 {[%clk 00:27:36] [%emt
00:01:45]} 25. Bc2 {[%clk 00:17:48] [%emt 00:07:32]} Nc4 {[%clk 00:26:51] [%emt
00:01:15]} 26. Bc1 {[%clk 00:15:57] [%emt 00:02:22]} 1/2-1/2

[Site "Europe Echecs"]

[Event "Saint Louis Masters"]
[Date "2024.12.06"]
[White "Caruana, Fabiano"]
[Black "Heimann, Mark"]
[WhiteElo "2805"]
[BlackElo "2459"]
[Round "7.1"]
[Result "1-0"]
[TimeControl "5400+30"]

1. c4 {[%clk 01:30:05] [%emt 00:00:55]} e6 {[%clk 01:30:45] [%emt 00:00:16]} 2.
g3 {[%clk 01:28:37] [%emt 00:01:58]} d5 {[%clk 01:31:09] [%emt 00:00:06]} 3. Bg2
{[%clk 01:29:03] [%emt 00:00:04]} d4 {[%clk 01:29:46] [%emt 00:01:53]} 4. b4
{[%clk 01:24:44] [%emt 00:04:49]} c6 {[%clk 01:26:16] [%emt 00:04:00]} 5. a3
{[%clk 01:17:29] [%emt 00:07:45]} a5 {[%clk 01:24:31] [%emt 00:02:15]} 6. b5
{[%clk 01:16:48] [%emt 00:01:11]} cxb5 {[%clk 01:20:16] [%emt 00:04:45]} 7. cxb5
{[%clk 01:17:05] [%emt 00:00:14]} a4 {[%clk 01:20:34] [%emt 00:00:11]} 8. Nf3
{[%clk 01:15:59] [%emt 00:01:35]} Bc5 {[%clk 01:18:22] [%emt 00:02:42]} 9. Bb2
{[%clk 01:12:44] [%emt 00:03:46]} Ne7 {[%clk 01:15:25] [%emt 00:03:26]} 10. Qc2
{[%clk 01:05:39] [%emt 00:07:35]} Bb6 {[%clk 01:03:48] [%emt 00:12:08]} 11. e3
{[%clk 01:05:40] [%emt 00:00:28]} Nf5 {[%clk 01:03:52] [%emt 00:00:26]} 12. Nxd4
{[%clk 00:56:58] [%emt 00:09:13]} Nxd4 {[%clk 01:01:09] [%emt 00:03:13]} 13.
Bxd4 {[%clk 00:57:13] [%emt 00:00:14]} Bxd4 {[%clk 01:01:34] [%emt 00:00:05]}
14. exd4 {[%clk 00:57:40] [%emt 00:00:03]} O-O {[%clk 01:01:44] [%emt 00:00:20]}
15. Qc4 {[%clk 00:57:50] [%emt 00:00:21]} Nd7 {[%clk 00:58:13] [%emt 00:04:00]}
16. Nc3 {[%clk 00:53:07] [%emt 00:05:13]} e5 {[%clk 00:53:22] [%emt 00:05:22]}
17. d5 {[%clk 00:47:32] [%emt 00:06:04]} Nb6 {[%clk 00:49:35] [%emt 00:04:17]}
18. Qe2 {[%clk 00:47:46] [%emt 00:00:17]} Bf5 {[%clk 00:49:41] [%emt 00:00:23]}
19. O-O {[%clk 00:48:08] [%emt 00:00:08]} Re8 {[%clk 00:44:30] [%emt 00:05:41]}
20. Rfe1 {[%clk 00:47:33] [%emt 00:01:06]} Bg6 {[%clk 00:42:04] [%emt 00:02:56]}
21. h4 {[%clk 00:35:27] [%emt 00:12:36]} f5 {[%clk 00:35:32] [%emt 00:07:01]}
22. h5 {[%clk 00:23:34] [%emt 00:12:24]} Bf7 {[%clk 00:35:57] [%emt 00:00:05]}
23. h6 {[%clk 00:24:00] [%emt 00:00:03]} g6 {[%clk 00:33:28] [%emt 00:02:59]}
24. Rab1 {[%clk 00:18:34] [%emt 00:05:57]} Nxd5 {[%clk 00:32:41] [%emt
00:01:15]} 25. Rbc1 {[%clk 00:17:44] [%emt 00:01:22]} Re7 {[%clk 00:23:07] [%emt
00:10:04]} 26. Nxd5 {[%clk 00:16:41] [%emt 00:01:33]} Bxd5 {[%clk 00:22:56]
[%emt 00:00:41]} 27. Rc5 {[%clk 00:17:02] [%emt 00:00:09]} Bxg2 {[%clk 00:22:50]
[%emt 00:00:35]} 28. Qc4+ {[%clk 00:12:09] [%emt 00:05:23]} Kf8 {[%clk 00:20:17]
[%emt 00:03:03]} 29. Kxg2 {[%clk 00:12:36] [%emt 00:00:03]} Qd6 {[%clk 00:19:22]
[%emt 00:01:25]} 30. Rd5 {[%clk 00:12:41] [%emt 00:00:25]} Qf6 {[%clk 00:19:21]
[%emt 00:00:30]} 31. Qc3 {[%clk 00:08:48] [%emt 00:04:24]} f4 {[%clk 00:04:05]
[%emt 00:15:46]} 32. Rdxe5 {[%clk 00:08:43] [%emt 00:00:35]} Rf7 {[%clk
00:04:30] [%emt 00:00:05]} 33. Qc5+ {[%clk 00:08:32] [%emt 00:00:41]} Kg8 {[%clk
00:04:55] [%emt 00:00:05]} 34. Re8+ {[%clk 00:08:58] [%emt 00:00:04]} Rf8 {[%clk
00:05:19] [%emt 00:00:05]} 35. Qd5+ {[%clk 00:08:39] [%emt 00:00:50]} Kh8 {[%clk
00:05:25] [%emt 00:00:24]} 36. Rxa8 {[%clk 00:08:55] [%emt 00:00:14]} Rxa8
{[%clk 00:05:50] [%emt 00:00:05]} 37. Re6 {[%clk 00:09:09] [%emt 00:00:17]} f3+
{[%clk 00:05:43] [%emt 00:00:36]} 38. Qxf3 {[%clk 00:09:19] [%emt 00:00:19]} 1-0

[Site "Europe Echecs"]

[Event "Saint Louis Masters"]
[Date "2024.12.06"]
[White "Hakobyan, Aram"]
[Black "Sevian, Samuel"]
[WhiteElo "2625"]
[BlackElo "2696"]
[Round "7.2"]
[Result "1/2-1/2"]
[TimeControl "5400+30"]

1. d4 {[%clk 01:28:13] [%emt 00:02:46]} Nf6 {[%clk 01:30:00] [%emt 00:01:00]} 2.
c4 {[%clk 01:27:17] [%emt 00:01:12]} e6 {[%clk 01:29:36] [%emt 00:01:08]} 3. Nc3
{[%clk 01:27:31] [%emt 00:00:16]} Bb4 {[%clk 01:29:43] [%emt 00:00:24]} 4. Nf3
{[%clk 01:27:58] [%emt 00:00:03]} d5 {[%clk 01:28:12] [%emt 00:02:00]} 5. Bg5
{[%clk 01:28:16] [%emt 00:00:13]} h6 {[%clk 01:28:35] [%emt 00:00:07]} 6. Bxf6
{[%clk 01:28:38] [%emt 00:00:07]} Qxf6 {[%clk 01:28:58] [%emt 00:00:07]} 7. e3
{[%clk 01:28:43] [%emt 00:00:26]} O-O {[%clk 01:29:09] [%emt 00:00:19]} 8. Be2
{[%clk 01:28:15] [%emt 00:00:57]} dxc4 {[%clk 01:08:24] [%emt 00:21:15]} 9. O-O
{[%clk 01:28:17] [%emt 00:00:28]} Bxc3 {[%clk 01:00:43] [%emt 00:08:12]} 10.
bxc3 {[%clk 01:28:33] [%emt 00:00:14]} Nc6 {[%clk 01:01:09] [%emt 00:00:03]} 11.
Bxc4 {[%clk 01:28:45] [%emt 00:00:18]} Rd8 {[%clk 01:01:36] [%emt 00:00:04]} 12.
Bd3 {[%clk 01:25:34] [%emt 00:03:40]} Rb8 {[%clk 01:00:51] [%emt 00:01:15]} 13.
Qc2 {[%clk 01:12:24] [%emt 00:13:40]} b6 {[%clk 00:59:11] [%emt 00:02:11]} 14.
Rad1 {[%clk 01:12:36] [%emt 00:00:17]} Bb7 {[%clk 00:58:26] [%emt 00:01:16]} 15.
Bh7+ {[%clk 01:12:46] [%emt 00:00:19]} Kh8 {[%clk 00:57:33] [%emt 00:01:23]} 16.
Be4 {[%clk 01:13:09] [%emt 00:00:07]} Kg8 {[%clk 00:54:03] [%emt 00:04:00]} 17.
c4 {[%clk 00:49:21] [%emt 00:24:19]} Qe7 {[%clk 00:43:37] [%emt 00:10:56]} 18.
Qc3 {[%clk 00:45:04] [%emt 00:04:45]} Qb4 {[%clk 00:42:33] [%emt 00:01:35]} 19.
Qxb4 {[%clk 00:44:12] [%emt 00:01:22]} Nxb4 {[%clk 00:42:54] [%emt 00:00:09]}
20. Bxb7 {[%clk 00:44:34] [%emt 00:00:08]} Rxb7 {[%clk 00:43:19] [%emt
00:00:06]} 21. a3 {[%clk 00:41:11] [%emt 00:03:53]} 1/2-1/2

[Site "Europe Echecs"]